{"text_format":"1","workbook":"xlsx","n_sheets":5,"sheets":["Alapadatok","Online_piactér_szolgáltatás","Keresőszolgáltatás","Felhőalapú_szolgáltatás","Adatok"],"not_rendered":{"charts":0,"images":0,"macros":0,"external_links":0,"defined_names":0,"comments":0,"pivot_tables":0},"unopened":[],"bounds":{"document_bytes":16777216,"sheet_cells":100000,"rows_first":2000,"rows_last":500,"rows_between":2000,"halvings":0,"cell_chars":16384,"cell_head_chars":4096},"cells_cut":0,"cells_raw":0,"read":"whole","date_system":"1900"}

{"sheet":"Alapadatok","index":0,"n_rows":37,"n_cols":37,"rows_kept":37,"cut":false,"hidden":false,"merged":[[13,0,13,60],[21,36,21,42],[20,0,20,6],[20,9,20,15],[20,18,20,24],[16,9,16,33],[18,12,18,32],[21,0,21,6],[21,9,21,15],[21,18,21,24],[21,27,21,33],[0,0,0,60],[1,0,1,60],[3,0,3,60],[5,0,5,60],[8,0,8,60],[2,0,2,60],[4,0,4,60],[32,2,32,3],[34,2,34,3],[36,2,36,3],[14,9,14,21],[9,5,9,60],[11,44,11,60],[16,48,16,60],[18,48,18,60],[24,13,24,60],[20,27,20,33],[20,36,20,42],[30,0,30,60],[26,13,26,60],[28,13,28,60],[23,0,23,60],[11,12,11,28]]}
["NEMZETBIZTONSÁGI SZAKSZOLGÁLAT"]
["Nemzeti Elektronikus Információbiztonsági Hatóság"]
["Tel.: +36 (1) 206-9320, E-mail: info@neih.gov.hu"]
[]
["Bejelentés-köteles szolgáltatást nyújtók regisztrációs űrlapja (NEIH-BKSZ 1.0)"]
["Adatszolgáltatás a 2001. évi CVIII. törvény 2. § j) és a 270/2018. (XII.20.) Korm. rendelet 2. § (2) a) alapján"]
[]
[]
["A bejelentés-köteles szolgáltatást nyújtó megnevezése"]
["Név*"]
[]
["Cégjegyzékszám*",null,null,null,null,null,null,null,null,null,null,null,null,null,null,null,null,null,null,null,null,null,null,null,null,null,null,null,null,null,null,null,null,null,null,null," Adószám*"]
[]
["Székhely adatok"]
["Ország"]
[]
["Település*",null,null,null,null,null,null,null,null,null,null,null,null,null,null,null,null,null,null,null,null,null,null,null,null,null,null,null,null,null,null,null,null,null,null,null,"Irányítószám*"]
[]
["Közterület neve*",null,null,null,null,null,null,null,null,null,null,null,null,null,null,null,null,null,null,null,null,null,null,null,null,null,null,null,null,null,null,null,null,null,null,null,"Közterület jellege"]
[]
["Házszám",null,null,null,null,null,null,null,null,"Épület",null,null,null,null,null,null,null,null,"Lépcsőház",null,null,null,null,null,null,null,null,"Emelet",null,null,null,null,null,null,null,null,"Ajtó"]
[]
[]
["Elektronikus kapcsolattartási adatok"]
["E-mail cím*"]
[]
["Telefonszám"]
[]
["Mobil telefonszám"]
[]
["Bejelentés-köteles szolgáltatás típusa*"]
[]
[null,null,null,null,null,"Online piactér"]
[]
[null,null,null,null,null,"Keresőszolgáltatás"]
[]
[null,null,null,null,null,"Felhőalapú számítástechnikai szolgáltatás"]

{"sheet":"Online_piactér_szolgáltatás","index":1,"n_rows":35,"n_cols":37,"rows_kept":35,"cut":false,"hidden":false,"merged":[[12,18,12,19],[9,0,9,60],[15,5,15,60],[17,44,17,60],[8,0,8,60],[11,0,11,60],[12,2,12,3],[0,0,0,60],[1,0,1,60],[3,0,3,60],[4,0,4,60],[6,0,6,60],[2,0,2,60],[5,0,5,60],[32,13,32,60],[34,13,34,60],[29,0,29,60],[22,48,22,60],[26,18,26,24],[26,27,26,33],[26,36,26,42],[27,0,27,6],[27,9,27,15],[27,18,27,24],[27,27,27,33],[27,36,27,42],[24,12,24,32],[22,9,22,33],[24,48,24,60],[26,0,26,6],[26,9,26,15],[14,0,14,60],[17,12,17,27],[30,13,30,60],[19,0,19,60],[20,9,20,21]]}
["NEMZETBIZTONSÁGI SZAKSZOLGÁLAT"]
["Nemzeti Elektronikus Információbiztonsági Hatóság"]
["Tel.: +36 (1) 206-9320, E-mail: info@neih.gov.hu"]
[]
["Bejelentés-köteles szolgáltatást nyújtók regisztrációs űrlapja (NEIH-BKSZ 1.0)"]
["Adatszolgáltatás a 2001. évi CVIII. törvény 2. § j) és a 270/2018. (XII.20.) Korm. rendelet 2. § (2) a) alapján"]
["Online piactér szolgáltatás"]
[]
["Szolgáltatásának elektronikus elérhetősége*"]
[]
[]
["Szolgáltatás nyújtásában közreműködik egyéb szervezet?"]
[null,null,null,null,null,"Igen",null,null,null,null,null,null,null,null,null,null,null,null,null,null,null,"Nem"]
[]
["Szolgáltatás nyújtásában közreműködő szervezet adatai"]
["Név*"]
[]
["Cégjegyzékszám*",null,null,null,null,null,null,null,null,null,null,null,null,null,null,null,null,null,null,null,null,null,null,null,null,null,null,null,null,null,null,null,null,null,null,null," Adószám*"]
[]
["Székhely adatok"]
["Ország"]
[]
["Település*",null,null,null,null,null,null,null,null,null,null,null,null,null,null,null,null,null,null,null,null,null,null,null,null,null,null,null,null,null,null,null,null,null,null,null,"Irányítószám*"]
[]
["Közterület neve*",null,null,null,null,null,null,null,null,null,null,null,null,null,null,null,null,null,null,null,null,null,null,null,null,null,null,null,null,null,null,null,null,null,null,null,"Közterület jellege"]
[]
["Házszám",null,null,null,null,null,null,null,null,"Épület",null,null,null,null,null,null,null,null,"Lépcsőház",null,null,null,null,null,null,null,null,"Emelet",null,null,null,null,null,null,null,null,"Ajtó"]
[]
[]
["Elektronikus kapcsolattartási adatok"]
["E-mail cím*"]
[]
["Telefonszám"]
[]
["Mobil telefonszám"]

{"sheet":"Keresőszolgáltatás","index":2,"n_rows":35,"n_cols":37,"rows_kept":35,"cut":false,"hidden":false,"merged":[[11,0,11,60],[12,2,12,3],[14,0,14,60],[17,12,17,27],[0,0,0,60],[1,0,1,60],[3,0,3,60],[4,0,4,60],[8,0,8,60],[2,0,2,60],[5,0,5,60],[27,9,27,15],[27,18,27,24],[27,27,27,33],[27,36,27,42],[19,0,19,60],[20,9,20,21],[22,9,22,33],[24,12,24,32],[24,48,24,60],[30,13,30,60],[32,13,32,60],[34,13,34,60],[29,0,29,60],[6,0,6,60],[12,18,12,19],[9,0,9,60],[15,5,15,60],[17,44,17,60],[22,48,22,60],[26,0,26,6],[26,9,26,15],[26,18,26,24],[26,27,26,33],[26,36,26,42],[27,0,27,6]]}
["NEMZETBIZTONSÁGI SZAKSZOLGÁLAT"]
["Nemzeti Elektronikus Információbiztonsági Hatóság"]
["Tel.: +36 (1) 206-9320, E-mail: info@neih.gov.hu"]
[]
["Bejelentés-köteles szolgáltatást nyújtók regisztrációs űrlapja (NEIH-BKSZ 1.0)"]
["Adatszolgáltatás a 2001. évi CVIII. törvény 2. § j) és a 270/2018. (XII.20.) Korm. rendelet 2. § (2) a) alapján"]
["Keresőszolgáltatás"]
[]
["Szolgáltatásának elektronikus elérhetősége*"]
[]
[]
["Szolgáltatás nyújtásában közreműködik egyéb szervezet?"]
[null,null,null,null,null,"Igen",null,null,null,null,null,null,null,null,null,null,null,null,null,null,null,"Nem"]
[]
["Szolgáltatás nyújtásában közreműködő szervezet adatai"]
["Név*"]
[]
["Cégjegyzékszám*",null,null,null,null,null,null,null,null,null,null,null,null,null,null,null,null,null,null,null,null,null,null,null,null,null,null,null,null,null,null,null,null,null,null,null," Adószám*"]
[]
["Székhely adatok"]
["Ország"]
[]
["Település*",null,null,null,null,null,null,null,null,null,null,null,null,null,null,null,null,null,null,null,null,null,null,null,null,null,null,null,null,null,null,null,null,null,null,null,"Irányítószám*"]
[]
["Közterület neve*",null,null,null,null,null,null,null,null,null,null,null,null,null,null,null,null,null,null,null,null,null,null,null,null,null,null,null,null,null,null,null,null,null,null,null,"Közterület jellege"]
[]
["Házszám",null,null,null,null,null,null,null,null,"Épület",null,null,null,null,null,null,null,null,"Lépcsőház",null,null,null,null,null,null,null,null,"Emelet",null,null,null,null,null,null,null,null,"Ajtó"]
[]
[]
["Elektronikus kapcsolattartási adatok"]
["E-mail cím*"]
[]
["Telefonszám"]
[]
["Mobil telefonszám"]

{"sheet":"Felhőalapú_szolgáltatás","index":3,"n_rows":42,"n_cols":37,"rows_kept":42,"cut":false,"hidden":false,"merged":[[8,0,8,60],[0,0,0,60],[1,0,1,60],[3,0,3,60],[4,0,4,60],[6,0,6,60],[5,0,5,60],[2,0,2,60],[33,0,33,6],[33,9,33,15],[33,18,33,24],[33,27,33,33],[33,36,33,42],[9,0,9,60],[22,5,22,60],[24,44,24,60],[29,48,29,60],[31,48,31,60],[31,12,31,32],[24,12,24,27],[26,0,26,60],[27,9,27,21],[29,9,29,33],[18,0,18,60],[19,2,19,3],[21,0,21,60],[16,5,16,29],[16,35,16,59],[11,0,11,60],[39,13,39,60],[41,13,41,60],[13,2,13,3],[16,2,16,3],[13,5,14,29],[13,32,13,33],[13,35,14,59],[16,32,16,33],[19,18,19,19],[37,13,37,60],[34,0,34,6],[34,9,34,15],[34,18,34,24],[34,27,34,33],[34,36,34,42],[36,0,36,60]]}
["NEMZETBIZTONSÁGI SZAKSZOLGÁLAT"]
["Nemzeti Elektronikus Információbiztonsági Hatóság"]
["Tel.: +36 (1) 206-9320, E-mail: info@neih.gov.hu"]
[]
["Bejelentés-köteles szolgáltatást nyújtók regisztrációs űrlapja (NEIH-BKSZ 1.0)"]
["Adatszolgáltatás a 2001. évi CVIII. törvény 2. § j) és a 270/2018. (XII.20.) Korm. rendelet 2. § (2) a) alapján"]
["Felhőalapú számítástechnikai szolgáltatás"]
[]
["Szolgáltatásának elektronikus elérhetősége*"]
[]
[]
["Felhőszolgáltatás csoportja*"]
[]
[null,null,null,null,null,"Infrastruktúra szintű ellátási szolgáltatások (IaaS)",null,null,null,null,null,null,null,null,null,null,null,null,null,null,null,null,null,null,null,null,null,null,null,null,null,null,null,null,null,"Platform szintű ellátási szolgáltatások (PaaS)"]
[]
[]
[null,null,null,null,null,"Szoftverszolgáltatás (SaaS)",null,null,null,null,null,null,null,null,null,null,null,null,null,null,null,null,null,null,null,null,null,null,null,null,null,null,null,null,null,"Egyéb"]
[]
["Szolgáltatás nyújtásában közreműködik egyéb szervezet?"]
[null,null,null,null,null,"Igen",null,null,null,null,null,null,null,null,null,null,null,null,null,null,null,"Nem"]
[]
["Szolgáltatás nyújtásában közreműködő szervezet adatai"]
["Név*"]
[]
["Cégjegyzékszám*",null,null,null,null,null,null,null,null,null,null,null,null,null,null,null,null,null,null,null,null,null,null,null,null,null,null,null,null,null,null,null,null,null,null,null," Adószám*"]
[]
["Székhely adatok"]
["Ország"]
[]
["Település*",null,null,null,null,null,null,null,null,null,null,null,null,null,null,null,null,null,null,null,null,null,null,null,null,null,null,null,null,null,null,null,null,null,null,null,"Irányítószám*"]
[]
["Közterület neve*",null,null,null,null,null,null,null,null,null,null,null,null,null,null,null,null,null,null,null,null,null,null,null,null,null,null,null,null,null,null,null,null,null,null,null,"Közterület jellege"]
[]
["Házszám",null,null,null,null,null,null,null,null,"Épület",null,null,null,null,null,null,null,null,"Lépcsőház",null,null,null,null,null,null,null,null,"Emelet",null,null,null,null,null,null,null,null,"Ajtó"]
[]
[]
["Elektronikus kapcsolattartási adatok"]
["E-mail cím*"]
[]
["Telefonszám"]
[]
["Mobil telefonszám"]

{"sheet":"Adatok","index":4,"n_rows":2,"n_cols":83,"rows_kept":2,"cut":false,"hidden":true,"merged":[]}
["UrlapAzonosito","FORM_TEMPLATE_HASH","UrlapVerzio","BejelentoNev","BejelentoCjsz","BejelentoAdosz","BejelentoSzhOr","BejelentoTelep","BejelentoIrsz","BejelentoKtnev","BejelentoKtjell","BejelentoHazsz","BejelentoEp","BejelentoLh","BejelentoEmelet","BejelentoAjto","BejelentoEmail","BejelentoTelSzam","BejelentoMobSzam","TipusOP","TipusKER","TipusFELHO","OPElerhetoseg","OPKozIgen","OPKozNem","OPKozNev","OPKozCjsz","OPKozAdosz","OPKozSzhOr","OPKozTelep","OPKozIrsz","OPKozKtnev","OPKozKtjell","OPKozHazsz","OPKozEp","OPKozLh","OPKozEmelet","OPKozAjto","OPKozEmail","OPKozTelSzam","OPKozMobSzam","KERElerhetoseg","KERKozIgen","KERKozNem","KERKozNev","KERKozCjsz","KERKozAdosz","KERKozSzhOr","KERKozTelep","KERKozIrsz","KERKozKtnev","KERKozKtjell","KERKozHazsz","KERKozEp","KERKozLh","KERKozEmelet","KERKozAjto","KERKozEmail","KERKozTelSzam","KERKozMobSzam","FELHOElerhetoseg","FELHOIaaS","FELHOPaaS","FELHOSaaS","FELHOEgyeb","FELHOKozIgen","FELHOKozNem","FELHOKozNev","FELHOKozCjsz","FELHOKozAdosz","FELHOKozSzhOr","FELHOKozTelep","FELHOKozIrsz","FELHOKozKtnev","FELHOKozKtjell","FELHOKozHazsz","FELHOKozEp","FELHOKozLh","FELHOKozEmelet","FELHOKozAjto","FELHOKozEmail","FELHOKozTelSzam","FELHOKozMobSzam"]
[{"$f":"Alapadatok!A5","v":"Bejelentés-köteles szolgáltatást nyújtók regisztrációs űrlapja (NEIH-BKSZ 1.0)"},"Nincs hash",{"$f":"Alapadatok!AH5","v":0},{"$f":"Alapadatok!F10","v":0},{"$f":"Alapadatok!M12","v":0},{"$f":"Alapadatok!AS12","v":0},{"$f":"Alapadatok!J15","v":0},{"$f":"Alapadatok!J17","v":0},{"$f":"Alapadatok!AW17","v":0},{"$f":"Alapadatok!M19","v":0},{"$f":"Alapadatok!AW19","v":0},{"$f":"Alapadatok!A22","v":0},{"$f":"Alapadatok!J22","v":0},{"$f":"Alapadatok!S22","v":0},{"$f":"Alapadatok!AB22","v":0},{"$f":"Alapadatok!AK22","v":0},{"$f":"Alapadatok!N25","v":0},{"$f":"Alapadatok!N27","v":0},{"$f":"Alapadatok!N29","v":0},{"$f":"Alapadatok!C33","v":0},{"$f":"Alapadatok!C35","v":0},{"$f":"Alapadatok!C37","v":0},{"$f":"Online_piactér_szolgáltatás!A10","v":0},{"$f":"Online_piactér_szolgáltatás!C13","v":0},{"$f":"Online_piactér_szolgáltatás!S13","v":0},{"$f":"Online_piactér_szolgáltatás!F16","v":0},{"$f":"Online_piactér_szolgáltatás!M18","v":0},{"$f":"Online_piactér_szolgáltatás!AS18","v":0},{"$f":"Online_piactér_szolgáltatás!J21","v":0},{"$f":"Online_piactér_szolgáltatás!J23","v":0},{"$f":"Online_piactér_szolgáltatás!AW23","v":0},{"$f":"Online_piactér_szolgáltatás!M25","v":0},{"$f":"Online_piactér_szolgáltatás!AW25","v":0},{"$f":"Online_piactér_szolgáltatás!A28","v":0},{"$f":"Online_piactér_szolgáltatás!J28","v":0},{"$f":"Online_piactér_szolgáltatás!S28","v":0},{"$f":"Online_piactér_szolgáltatás!AB28","v":0},{"$f":"Online_piactér_szolgáltatás!AK28","v":0},{"$f":"Online_piactér_szolgáltatás!N31","v":0},{"$f":"Online_piactér_szolgáltatás!N33","v":0},{"$f":"Online_piactér_szolgáltatás!N35","v":0},{"$f":"Keresőszolgáltatás!A10","v":0},{"$f":"Keresőszolgáltatás!C13","v":0},{"$f":"Keresőszolgáltatás!S13","v":0},{"$f":"Keresőszolgáltatás!F16","v":0},{"$f":"Keresőszolgáltatás!M18","v":0},{"$f":"Keresőszolgáltatás!AS18","v":0},{"$f":"Keresőszolgáltatás!J21","v":0},{"$f":"Keresőszolgáltatás!J23","v":0},{"$f":"Keresőszolgáltatás!AW23","v":0},{"$f":"Keresőszolgáltatás!M25","v":0},{"$f":"Keresőszolgáltatás!AW25","v":0},{"$f":"Keresőszolgáltatás!A28","v":0},{"$f":"Keresőszolgáltatás!J28","v":0},{"$f":"Keresőszolgáltatás!S28","v":0},{"$f":"Keresőszolgáltatás!AB28","v":0},{"$f":"Keresőszolgáltatás!AK28","v":0},{"$f":"Keresőszolgáltatás!N31","v":0},{"$f":"Keresőszolgáltatás!N33","v":0},{"$f":"Keresőszolgáltatás!N35","v":0},{"$f":"Felhőalapú_szolgáltatás!A10","v":0},{"$f":"Felhőalapú_szolgáltatás!C14","v":0},{"$f":"Felhőalapú_szolgáltatás!AG14","v":0},{"$f":"Felhőalapú_szolgáltatás!C17","v":0},{"$f":"Felhőalapú_szolgáltatás!AG17","v":0},{"$f":"Felhőalapú_szolgáltatás!C20","v":0},{"$f":"Felhőalapú_szolgáltatás!S20","v":0},{"$f":"Felhőalapú_szolgáltatás!F23","v":0},{"$f":"Felhőalapú_szolgáltatás!M25","v":0},{"$f":"Felhőalapú_szolgáltatás!AS25","v":0},{"$f":"Felhőalapú_szolgáltatás!J28","v":0},{"$f":"Felhőalapú_szolgáltatás!J30","v":0},{"$f":"Felhőalapú_szolgáltatás!AW30","v":0},{"$f":"Felhőalapú_szolgáltatás!M32","v":0},{"$f":"Felhőalapú_szolgáltatás!AW32","v":0},{"$f":"Felhőalapú_szolgáltatás!A35","v":0},{"$f":"Felhőalapú_szolgáltatás!J35","v":0},{"$f":"Felhőalapú_szolgáltatás!S35","v":0},{"$f":"Felhőalapú_szolgáltatás!AB35","v":0},{"$f":"Felhőalapú_szolgáltatás!AK35","v":0},{"$f":"Felhőalapú_szolgáltatás!N38","v":0},{"$f":"Felhőalapú_szolgáltatás!N40","v":0},{"$f":"Felhőalapú_szolgáltatás!N42","v":0}]